[Event "Titled Tuesday Blitz June 1 2021"]
[White "Nakamura, Hikaru"]
[Black "ValeriyGrinev"]
[WhiteFideId "2016192"]
[WhiteElo "2900"]
[BlackElo "2621"]
[Result "1-0"]
[Round "02"]
[TimeControl "180+1"]
[Date "2021.06.01"]
[WhiteClock "0:00:29"]
[BlackClock "0:00:19"]

1. b4 {[%clk 0:03:00]}  e5 {[%clk 0:02:59]} 2. Bb2 {[%clk 0:03:00]}  Bxb4 {[%clk 0:02:59]} 3. Bxe5 {[%clk 0:03:00]}  Nf6 {[%clk 0:02:59]} 4. e3 {[%clk 0:03:01]}  d5 {[%clk 0:02:58]} 5. c3 {[%clk 0:02:57]}  Bd6 {[%clk 0:02:52]} 6. Bxf6 {[%clk 0:02:53]}  Qxf6 {[%clk 0:02:51]} 7. g3 {[%clk 0:02:53]}  O-O {[%clk 0:02:50]} 8. Bg2 {[%clk 0:02:53]}  c6 {[%clk 0:02:49]} 9. Ne2 {[%clk 0:02:52]}  Bg4 {[%clk 0:02:46]} 10. d4 {[%clk 0:02:50]}  Nd7 {[%clk 0:02:41]} 11. Nd2 {[%clk 0:02:50]}  Qe7 {[%clk 0:02:36]} 12. O-O {[%clk 0:02:43]}  Nf6 {[%clk 0:02:28]} 13. Re1 {[%clk 0:02:38]}  b5 {[%clk 0:02:13]} 14. a4 {[%clk 0:02:31]}  a6 {[%clk 0:02:11]} 15. Qc2 {[%clk 0:02:32]}  Bh5 {[%clk 0:02:02]} 16. Nf4 {[%clk 0:02:29]}  Bg6 {[%clk 0:01:56]} 17. Nxg6 {[%clk 0:02:29]}  hxg6 {[%clk 0:01:57]} 18. f3 {[%clk 0:02:23]}  c5 {[%clk 0:01:53]} 19. e4 {[%clk 0:02:23]}  dxe4 {[%clk 0:01:51]} 20. fxe4 {[%clk 0:02:21]}  cxd4 {[%clk 0:01:47]} 21. cxd4 {[%clk 0:02:16]}  Bb4 {[%clk 0:01:46]} 22. e5 {[%clk 0:02:01]}  Rac8 {[%clk 0:01:36]} 23. Qd3 {[%clk 0:02:00]}  Nd7 {[%clk 0:01:25]} 24. axb5 {[%clk 0:01:58]}  axb5 {[%clk 0:01:24]} 25. Rad1 {[%clk 0:01:49]}  Bxd2 {[%clk 0:01:10]} 26. Rxd2 {[%clk 0:01:47]}  Qb4 {[%clk 0:01:10]} 27. Rb1 {[%clk 0:01:46]}  Qc4 {[%clk 0:01:09]} 28. Bh3 {[%clk 0:01:40]}  Qxd3 {[%clk 0:01:06]} 29. Rxd3 {[%clk 0:01:40]}  Rfd8 {[%clk 0:01:01]} 30. Rxb5 {[%clk 0:01:33]}  Rc2 {[%clk 0:00:56]} 31. Rd5 {[%clk 0:01:25]}  Rc1+ {[%clk 0:00:49]} 32. Kf2 {[%clk 0:01:22]}  Rc2+ {[%clk 0:00:49]} 33. Ke3 {[%clk 0:01:20]}  Rc7 {[%clk 0:00:45]} 34. Ke4 {[%clk 0:01:09]}  Kf8 {[%clk 0:00:44]} 35. Ra3 {[%clk 0:01:04]}  Ke7 {[%clk 0:00:43]} 36. Rxd7+ {[%clk 0:01:04]}  Rdxd7 {[%clk 0:00:42]} 37. Bxd7 {[%clk 0:01:04]}  Kxd7 {[%clk 0:00:42]} 38. d5 {[%clk 0:01:04]}  Rc4+ {[%clk 0:00:42]} 39. Kd3 {[%clk 0:01:05]}  Rb4 {[%clk 0:00:41]} 40. Ra7+ {[%clk 0:01:04]}  Ke8 {[%clk 0:00:41]} 41. d6 {[%clk 0:00:56]}  g5 {[%clk 0:00:37]} 42. Re7+ {[%clk 0:00:47]}  Kf8 {[%clk 0:00:36]} 43. Rc7 {[%clk 0:00:47]}  Ke8 {[%clk 0:00:36]} 44. Rc4 {[%clk 0:00:42]}  Rb2 {[%clk 0:00:34]} 45. Rc2 {[%clk 0:00:30]}  Rb4 {[%clk 0:00:33]} 46. Rc8+ {[%clk 0:00:29]}  Kd7 {[%clk 0:00:33]} 47. Rf8 {[%clk 0:00:30]}  f6 {[%clk 0:00:30]} 48. Rf7+ {[%clk 0:00:28]}  Ke6 {[%clk 0:00:27]} 49. Re7+ {[%clk 0:00:28]}  Kd5 {[%clk 0:00:20]} 50. d7 {[%clk 0:00:29]}  Rd4+ {[%clk 0:00:20]} 51. Kc3 {[%clk 0:00:29]}  Kc5 {[%clk 0:00:19]} 52. e6 {[%clk 0:00:29]}  Rd6 {[%clk 0:00:19]} 53. Re8 {[%clk 0:00:29]} 1-0


[Site "https://www.chess.com"]

[Event "Titled Tuesday Blitz June 1 2021"]
[White "Nguyen, Duc Hoa"]
[Black "Triapishko, Alexandr"]
[WhiteFideId "12401358"]
[BlackFideId "14122286"]
[WhiteElo "2299"]
[BlackElo "2490"]
[Result "1-0"]
[Round "02"]
[TimeControl "180+1"]
[Date "2021.06.01"]
[WhiteClock "0:00:18"]
[BlackClock "0:00:03"]

1. e4 {[%clk 0:03:00]}  e5 {[%clk 0:02:55]} 2. Nf3 {[%clk 0:03:00]}  Nc6 {[%clk 0:02:56]} 3. d4 {[%clk 0:03:00]}  exd4 {[%clk 0:02:54]} 4. Nxd4 {[%clk 0:03:00]}  Nf6 {[%clk 0:02:54]} 5. Nxc6 {[%clk 0:03:00]}  bxc6 {[%clk 0:02:52]} 6. Qe2 {[%clk 0:03:00]}  d6 {[%clk 0:02:45]} 7. Nc3 {[%clk 0:02:56]}  Be7 {[%clk 0:02:44]} 8. Bf4 {[%clk 0:02:56]}  O-O {[%clk 0:02:42]} 9. O-O-O {[%clk 0:02:57]}  Bg4 {[%clk 0:02:29]} 10. f3 {[%clk 0:02:56]}  Be6 {[%clk 0:02:30]} 11. Qa6 {[%clk 0:02:56]}  Qd7 {[%clk 0:01:53]} 12. Bc4 {[%clk 0:02:55]}  Rfb8 {[%clk 0:01:44]} 13. e5 {[%clk 0:02:47]}  Rb6 {[%clk 0:01:15]} 14. Bxe6 {[%clk 0:01:54]}  Qxe6 {[%clk 0:01:13]} 15. Qa5 {[%clk 0:01:52]}  Nd7 {[%clk 0:00:48]} 16. exd6 {[%clk 0:01:47]}  Bxd6 {[%clk 0:00:48]} 17. Bxd6 {[%clk 0:01:46]}  cxd6 {[%clk 0:00:49]} 18. Rhe1 {[%clk 0:01:37]}  Ne5 {[%clk 0:00:49]} 19. f4 {[%clk 0:01:24]}  Qh6 {[%clk 0:00:48]} 20. g3 {[%clk 0:01:08]}  Nc4 {[%clk 0:00:47]} 21. Qxa7 {[%clk 0:01:08]}  Rbb8 {[%clk 0:00:45]} 22. Qc7 {[%clk 0:00:36]}  d5 {[%clk 0:00:37]} 23. b3 {[%clk 0:00:25]}  Qf6 {[%clk 0:00:34]} 24. Rd3 {[%clk 0:00:25]}  Rc8 {[%clk 0:00:26]} 25. Qe7 {[%clk 0:00:25]}  Qxe7 {[%clk 0:00:12]} 26. Rxe7 {[%clk 0:00:25]}  Nd6 {[%clk 0:00:09]} 27. a4 {[%clk 0:00:26]}  h5 {[%clk 0:00:03]} 28. Rd7 {[%clk 0:00:21]}  Nf5 {[%clk 0:00:04]} 29. Ne2 {[%clk 0:00:21]}  Re8 {[%clk 0:00:02]} 30. Nd4 {[%clk 0:00:21]}  Nxd4 {[%clk 0:00:03]} 31. Rxd4 {[%clk 0:00:22]}  Re2 {[%clk 0:00:03]} 32. Rc7 {[%clk 0:00:21]}  Rxh2 {[%clk 0:00:03]} 33. Rxc6 {[%clk 0:00:20]}  Rg2 {[%clk 0:00:04]} 34. Rxd5 {[%clk 0:00:20]}  g6 {[%clk 0:00:04]} 35. Rg5 {[%clk 0:00:20]}  Re8 {[%clk 0:00:04]} 36. Kb2 {[%clk 0:00:20]}  Kh7 {[%clk 0:00:03]} 37. a5 {[%clk 0:00:19]}  Kh6 {[%clk 0:00:03]} 38. a6 {[%clk 0:00:19]}  Rf8 {[%clk 0:00:04]} 39. b4 {[%clk 0:00:19]}  f6 {[%clk 0:00:04]} 40. Rgc5 {[%clk 0:00:17]}  Rxg3 {[%clk 0:00:05]} 41. Rc8 {[%clk 0:00:17]}  Rxc8 {[%clk 0:00:03]} 42. Rxc8 {[%clk 0:00:18]} 1-0


[Site "https://www.chess.com"]

[Event "Titled Tuesday Blitz June 1 2021"]
[White "Nguyen, Van Huy"]
[Black "Maevsky, Nikolay"]
[WhiteFideId "12401064"]
[BlackFideId "4198220"]
[WhiteElo "2443"]
[BlackElo "2282"]
[Result "1-0"]
[Round "02"]
[TimeControl "180+1"]
[Date "2021.06.01"]
[WhiteClock "0:00:19"]
[BlackClock "0:00:07"]

1. d4 {[%clk 0:03:00]}  d5 {[%clk 0:03:00]} 2. Nf3 {[%clk 0:03:00]}  Nf6 {[%clk 0:02:59]} 3. c4 {[%clk 0:03:01]}  c6 {[%clk 0:02:59]} 4. Qb3 {[%clk 0:03:01]}  dxc4 {[%clk 0:02:56]} 5. Qxc4 {[%clk 0:03:01]}  Bf5 {[%clk 0:02:56]} 6. g3 {[%clk 0:03:01]}  e6 {[%clk 0:02:56]} 7. Bg2 {[%clk 0:03:02]}  Be7 {[%clk 0:02:56]} 8. O-O {[%clk 0:03:02]}  Nbd7 {[%clk 0:02:55]} 9. e3 {[%clk 0:03:02]}  O-O {[%clk 0:02:54]} 10. Rd1 {[%clk 0:03:03]}  h6 {[%clk 0:02:53]} 11. Qe2 {[%clk 0:03:02]}  Rc8 {[%clk 0:02:43]} 12. Nc3 {[%clk 0:03:02]}  Ne4 {[%clk 0:02:42]} 13. Nd2 {[%clk 0:03:02]}  Nxd2 {[%clk 0:02:37]} 14. Bxd2 {[%clk 0:03:02]}  Nf6 {[%clk 0:02:35]} 15. e4 {[%clk 0:03:01]}  Bg6 {[%clk 0:02:35]} 16. Bf4 {[%clk 0:02:53]}  Bh5 {[%clk 0:02:20]} 17. f3 {[%clk 0:02:48]}  Qa5 {[%clk 0:01:57]} 18. a3 {[%clk 0:02:42]}  Rfe8 {[%clk 0:01:51]} 19. b4 {[%clk 0:02:40]}  Qd8 {[%clk 0:01:49]} 20. Rac1 {[%clk 0:02:37]}  a6 {[%clk 0:01:48]} 21. h3 {[%clk 0:02:29]}  Bg6 {[%clk 0:01:48]} 22. g4 {[%clk 0:02:26]}  Nd7 {[%clk 0:01:47]} 23. Qf2 {[%clk 0:02:15]}  Bg5 {[%clk 0:01:45]} 24. Qe3 {[%clk 0:02:07]}  Bxf4 {[%clk 0:01:44]} 25. Qxf4 {[%clk 0:02:08]}  Qg5 {[%clk 0:01:42]} 26. Qxg5 {[%clk 0:02:08]}  hxg5 {[%clk 0:01:42]} 27. Kf2 {[%clk 0:02:07]}  f6 {[%clk 0:01:37]} 28. Bf1 {[%clk 0:02:07]}  Nb6 {[%clk 0:01:35]} 29. a4 {[%clk 0:02:03]}  Red8 {[%clk 0:01:33]} 30. a5 {[%clk 0:02:03]}  Na8 {[%clk 0:01:32]} 31. Na4 {[%clk 0:02:02]}  Bf7 {[%clk 0:01:28]} 32. Nc5 {[%clk 0:02:02]}  Rc7 {[%clk 0:01:25]} 33. Ke3 {[%clk 0:02:01]}  Re7 {[%clk 0:01:21]} 34. Rd2 {[%clk 0:01:53]}  Rb8 {[%clk 0:01:21]} 35. Bc4 {[%clk 0:01:44]}  Nc7 {[%clk 0:01:21]} 36. Rh1 {[%clk 0:01:38]}  Nd5+ {[%clk 0:01:15]} 37. Bxd5 {[%clk 0:01:35]}  exd5 {[%clk 0:01:15]} 38. Kf2 {[%clk 0:01:33]}  Rbe8 {[%clk 0:01:05]} 39. Re1 {[%clk 0:01:33]}  Bg6 {[%clk 0:00:58]} 40. Rde2 {[%clk 0:01:32]}  dxe4 {[%clk 0:00:58]} 41. fxe4 {[%clk 0:01:32]}  Rd8 {[%clk 0:00:58]} 42. Rd2 {[%clk 0:01:29]}  Rde8 {[%clk 0:00:56]} 43. Kf3 {[%clk 0:01:29]}  Rd8 {[%clk 0:00:56]} 44. Re3 {[%clk 0:01:26]}  Rd6 {[%clk 0:00:53]} 45. d5 {[%clk 0:01:25]}  cxd5 {[%clk 0:00:50]} 46. exd5 {[%clk 0:01:17]}  Rxe3+ {[%clk 0:00:49]} 47. Kxe3 {[%clk 0:01:18]}  Bf7 {[%clk 0:00:37]} 48. Ke4 {[%clk 0:01:10]}  b6 {[%clk 0:00:36]} 49. axb6 {[%clk 0:01:04]}  Rxb6 {[%clk 0:00:36]} 50. Rd4 {[%clk 0:01:03]}  Rd6 {[%clk 0:00:30]} 51. Nb7 {[%clk 0:00:54]}  Rd7 {[%clk 0:00:30]} 52. Na5 {[%clk 0:00:54]}  Bg6+ {[%clk 0:00:26]} 53. Kf3 {[%clk 0:00:52]}  Bf7 {[%clk 0:00:20]} 54. d6 {[%clk 0:00:51]}  Be6 {[%clk 0:00:19]} 55. Nc6 {[%clk 0:00:44]}  Kf7 {[%clk 0:00:18]} 56. Nb8 {[%clk 0:00:44]}  Rd8 {[%clk 0:00:14]} 57. Nxa6 {[%clk 0:00:44]}  g6 {[%clk 0:00:14]} 58. Nc5 {[%clk 0:00:41]}  f5 {[%clk 0:00:14]} 59. b5 {[%clk 0:00:40]}  Bd7 {[%clk 0:00:14]} 60. b6 {[%clk 0:00:39]}  Bc6+ {[%clk 0:00:14]} 61. Kf2 {[%clk 0:00:38]}  f4 {[%clk 0:00:14]} 62. b7 {[%clk 0:00:36]}  Rb8 {[%clk 0:00:13]} 63. d7 {[%clk 0:00:34]}  Rd8 {[%clk 0:00:13]} 64. b8=Q {[%clk 0:00:32]}  Rxb8 {[%clk 0:00:12]} 65. d8=Q {[%clk 0:00:32]}  Rxd8 {[%clk 0:00:12]} 66. Rxd8 {[%clk 0:00:32]}  Ke7 {[%clk 0:00:12]} 67. Rg8 {[%clk 0:00:28]}  Kf7 {[%clk 0:00:12]} 68. Rc8 {[%clk 0:00:28]}  Bd5 {[%clk 0:00:12]} 69. Rc7+ {[%clk 0:00:26]}  Kf6 {[%clk 0:00:12]} 70. Ra7 {[%clk 0:00:25]}  Bc4 {[%clk 0:00:12]} 71. Ne4+ {[%clk 0:00:24]}  Ke5 {[%clk 0:00:11]} 72. Nxg5 {[%clk 0:00:24]}  Bd5 {[%clk 0:00:11]} 73. Nf3+ {[%clk 0:00:24]}  Kf6 {[%clk 0:00:09]} 74. Ra5 {[%clk 0:00:22]}  Bb7 {[%clk 0:00:09]} 75. g5+ {[%clk 0:00:22]}  Ke6 {[%clk 0:00:09]} 76. h4 {[%clk 0:00:21]}  Bc8 {[%clk 0:00:08]} 77. Ra4 {[%clk 0:00:19]}  Kf5 {[%clk 0:00:08]} 78. Rc4 {[%clk 0:00:19]}  Ba6 {[%clk 0:00:07]} 79. Rc6 {[%clk 0:00:19]}  Bd3 {[%clk 0:00:05]} 80. Rf6+ {[%clk 0:00:19]}  Kg4 {[%clk 0:00:04]} 81. Ne5+ {[%clk 0:00:19]}  Kxh4 {[%clk 0:00:05]} 82. Nxd3 {[%clk 0:00:19]}  Kxg5 {[%clk 0:00:05]} 83. Rxf4 {[%clk 0:00:19]}  Kh5 {[%clk 0:00:06]} 84. Kg3 {[%clk 0:00:19]}  g5 {[%clk 0:00:07]} 85. Rf6 {[%clk 0:00:19]}  g4 {[%clk 0:00:07]} 86. Rf5+ {[%clk 0:00:18]}  Kg6 {[%clk 0:00:06]} 87. Kxg4 {[%clk 0:00:19]}  Kh7 {[%clk 0:00:07]} 88. Rf6 {[%clk 0:00:19]} 1-0


[Site "https://www.chess.com"]

[Event "Titled Tuesday Blitz June 1 2021"]
[White "Petukhov, Dmitry"]
[Black "Nenezic, Marko"]
[WhiteFideId "4142748"]
[BlackFideId "912123"]
[WhiteElo "2356"]
[BlackElo "2438"]
[Result "0-1"]
[Round "02"]
[TimeControl "180+1"]
[Date "2021.06.01"]
[WhiteClock "0:00:05"]
[BlackClock "0:00:21"]

1. e4 {[%clk 0:03:00]}  c5 {[%clk 0:02:59]} 2. c3 {[%clk 0:03:00]}  d5 {[%clk 0:02:51]} 3. exd5 {[%clk 0:03:00]}  Qxd5 {[%clk 0:02:52]} 4. d4 {[%clk 0:03:01]}  Nf6 {[%clk 0:02:52]} 5. Nf3 {[%clk 0:03:01]}  e6 {[%clk 0:02:53]} 6. Be2 {[%clk 0:03:00]}  cxd4 {[%clk 0:02:52]} 7. cxd4 {[%clk 0:02:56]}  Be7 {[%clk 0:02:51]} 8. Nc3 {[%clk 0:02:56]}  Qd8 {[%clk 0:02:51]} 9. O-O {[%clk 0:02:56]}  b6 {[%clk 0:02:51]} 10. Ne5 {[%clk 0:02:55]}  Bb7 {[%clk 0:02:50]} 11. Bf3 {[%clk 0:02:55]}  Nd5 {[%clk 0:02:44]} 12. Nxd5 {[%clk 0:02:53]}  Bxd5 {[%clk 0:02:42]} 13. Be3 {[%clk 0:02:46]}  O-O {[%clk 0:02:40]} 14. Rc1 {[%clk 0:02:46]}  f6 {[%clk 0:02:35]} 15. Nd3 {[%clk 0:02:43]}  Bd6 {[%clk 0:01:55]} 16. Bxd5 {[%clk 0:02:25]}  exd5 {[%clk 0:01:55]} 17. Bf4 {[%clk 0:02:26]}  Re8 {[%clk 0:01:48]} 18. Qh5 {[%clk 0:02:22]}  Bf8 {[%clk 0:01:43]} 19. Bc7 {[%clk 0:02:02]}  Qd7 {[%clk 0:01:40]} 20. Nf4 {[%clk 0:02:03]}  Nc6 {[%clk 0:01:36]} 21. Qxd5+ {[%clk 0:01:44]}  Qxd5 {[%clk 0:01:35]} 22. Nxd5 {[%clk 0:01:44]}  Nxd4 {[%clk 0:01:36]} 23. Rcd1 {[%clk 0:01:43]}  Nf5 {[%clk 0:01:19]} 24. Bg3 {[%clk 0:01:39]}  Re2 {[%clk 0:01:17]} 25. Rb1 {[%clk 0:01:31]}  Rd8 {[%clk 0:01:14]} 26. Nc3 {[%clk 0:01:29]}  Rc2 {[%clk 0:01:11]} 27. Rfc1 {[%clk 0:01:24]}  Rdd2 {[%clk 0:01:10]} 28. Rxc2 {[%clk 0:01:20]}  Rxc2 {[%clk 0:01:10]} 29. Kf1 {[%clk 0:01:16]}  Bb4 {[%clk 0:01:03]} 30. Ne4 {[%clk 0:01:13]}  h5 {[%clk 0:00:53]} 31. a3 {[%clk 0:01:12]}  Be7 {[%clk 0:00:43]} 32. b4 {[%clk 0:01:07]}  Kf7 {[%clk 0:00:38]} 33. Bb8 {[%clk 0:01:04]}  a6 {[%clk 0:00:38]} 34. Ba7 {[%clk 0:01:04]}  Rc4 {[%clk 0:00:33]} 35. f3 {[%clk 0:00:58]}  Ne3+ {[%clk 0:00:34]} 36. Ke2 {[%clk 0:00:58]}  Nd5 {[%clk 0:00:34]} 37. Rd1 {[%clk 0:00:50]}  Ke6 {[%clk 0:00:35]} 38. Rd2 {[%clk 0:00:47]}  Rc8 {[%clk 0:00:31]} 39. b5 {[%clk 0:00:33]}  axb5 {[%clk 0:00:26]} 40. Rb2 {[%clk 0:00:07]}  Ra8 {[%clk 0:00:25]} 41. Bxb6 {[%clk 0:00:08]}  Nxb6 {[%clk 0:00:25]} 42. Rxb5 {[%clk 0:00:08]}  Nd5 {[%clk 0:00:24]} 43. f4 {[%clk 0:00:08]}  f5 {[%clk 0:00:20]} 44. Ng5+ {[%clk 0:00:04]}  Bxg5 {[%clk 0:00:20]} 45. fxg5 {[%clk 0:00:05]}  Nc3+ {[%clk 0:00:21]} 0-1


[Site "https://www.chess.com"]

[Event "Titled Tuesday Blitz June 1 2021"]
[White "Quparadze, Giga"]
[Black "Maksimenko, Viktor"]
[WhiteFideId "13602250"]
[BlackFideId "13710478"]
[WhiteElo "2658"]
[BlackElo "2269"]
[Result "1-0"]
[Round "02"]
[TimeControl "180+1"]
[Date "2021.06.01"]
[WhiteClock "0:01:49"]
[BlackClock "0:00:20"]

1. e4 {[%clk 0:03:00]}  e5 {[%clk 0:02:59]} 2. Nf3 {[%clk 0:02:59]}  Nc6 {[%clk 0:03:00]} 3. Bb5 {[%clk 0:02:59]}  a6 {[%clk 0:03:00]} 4. Ba4 {[%clk 0:02:59]}  Nf6 {[%clk 0:03:00]} 5. Qe2 {[%clk 0:02:58]}  b5 {[%clk 0:02:59]} 6. Bb3 {[%clk 0:02:58]}  Bc5 {[%clk 0:02:59]} 7. a4 {[%clk 0:02:58]}  Rb8 {[%clk 0:02:57]} 8. axb5 {[%clk 0:02:57]}  axb5 {[%clk 0:02:58]} 9. Nc3 {[%clk 0:02:56]}  b4 {[%clk 0:02:38]} 10. Nd5 {[%clk 0:02:38]}  O-O {[%clk 0:02:27]} 11. O-O {[%clk 0:02:34]}  d6 {[%clk 0:02:18]} 12. h3 {[%clk 0:02:33]}  h6 {[%clk 0:01:57]} 13. d3 {[%clk 0:02:27]}  Be6 {[%clk 0:01:33]} 14. Be3 {[%clk 0:02:25]}  Bxe3 {[%clk 0:01:26]} 15. Nxf6+ {[%clk 0:02:23]}  Qxf6 {[%clk 0:01:25]} 16. fxe3 {[%clk 0:02:23]}  Bxb3 {[%clk 0:01:22]} 17. cxb3 {[%clk 0:02:24]}  Qe6 {[%clk 0:01:22]} 18. Qc2 {[%clk 0:02:24]}  Rb6 {[%clk 0:01:15]} 19. d4 {[%clk 0:02:24]}  d5 {[%clk 0:00:49]} 20. exd5 {[%clk 0:02:20]}  Qxd5 {[%clk 0:00:49]} 21. Rfd1 {[%clk 0:02:02]}  exd4 {[%clk 0:00:48]} 22. exd4 {[%clk 0:02:01]}  Rd8 {[%clk 0:00:47]} 23. Rac1 {[%clk 0:02:00]}  Rd6 {[%clk 0:00:38]} 24. Qc4 {[%clk 0:01:59]}  Ne7 {[%clk 0:00:22]} 25. Qxc7 {[%clk 0:01:57]}  Nf5 {[%clk 0:00:22]} 26. Rc5 {[%clk 0:01:50]}  Qe4 {[%clk 0:00:20]} 27. Qc8+ {[%clk 0:01:49]} 1-0


[Site "https://www.chess.com"]

[Event "Titled Tuesday Blitz June 1 2021"]
[White "Rakotomaharo, Fy Antenaina"]
[Black "Ronka, Erik"]
[WhiteFideId "13100050"]
[BlackFideId "505080"]
[WhiteElo "2378"]
[BlackElo "2264"]
[Result "1-0"]
[Round "02"]
[TimeControl "180+1"]
[Date "2021.06.01"]
[WhiteClock "0:00:24"]
[BlackClock "0:00:04"]

1. e4 {[%clk 0:03:00]}  g6 {[%clk 0:03:00]} 2. d4 {[%clk 0:03:00]}  Bg7 {[%clk 0:03:00]} 3. Nc3 {[%clk 0:03:01]}  c6 {[%clk 0:03:00]} 4. h3 {[%clk 0:03:01]}  d6 {[%clk 0:02:58]} 5. a4 {[%clk 0:02:59]}  Nf6 {[%clk 0:02:52]} 6. f4 {[%clk 0:02:57]}  O-O {[%clk 0:02:48]} 7. Nf3 {[%clk 0:02:56]}  c5 {[%clk 0:02:26]} 8. dxc5 {[%clk 0:02:21]}  Qa5 {[%clk 0:02:22]} 9. Bd3 {[%clk 0:02:15]}  Qxc5 {[%clk 0:02:17]} 10. Qe2 {[%clk 0:02:14]}  Nh5 {[%clk 0:02:09]} 11. Be3 {[%clk 0:02:05]}  Qb4 {[%clk 0:01:54]} 12. Kf2 {[%clk 0:01:55]}  Qxb2 {[%clk 0:01:33]} 13. Nd5 {[%clk 0:01:55]}  Nc6 {[%clk 0:01:13]} 14. e5 {[%clk 0:01:56]}  dxe5 {[%clk 0:00:49]} 15. Rhb1 {[%clk 0:01:52]}  Qxa1 {[%clk 0:00:49]} 16. Rxa1 {[%clk 0:01:46]}  exf4 {[%clk 0:00:49]} 17. Nxe7+ {[%clk 0:01:15]}  Nxe7 {[%clk 0:00:47]} 18. Bd4 {[%clk 0:01:15]}  Nf5 {[%clk 0:00:29]} 19. Bxg7 {[%clk 0:01:10]}  Nhxg7 {[%clk 0:00:30]} 20. Qe5 {[%clk 0:00:57]}  Be6 {[%clk 0:00:27]} 21. Qxf4 {[%clk 0:00:55]}  Rfe8 {[%clk 0:00:22]} 22. a5 {[%clk 0:00:52]}  Rac8 {[%clk 0:00:19]} 23. Rb1 {[%clk 0:00:48]}  Bd5 {[%clk 0:00:18]} 24. a6 {[%clk 0:00:35]}  bxa6 {[%clk 0:00:12]} 25. Kg1 {[%clk 0:00:35]}  Ne6 {[%clk 0:00:12]} 26. Qa4 {[%clk 0:00:31]}  Bxf3 {[%clk 0:00:10]} 27. gxf3 {[%clk 0:00:31]}  Nfd4 {[%clk 0:00:10]} 28. Be4 {[%clk 0:00:28]}  f5 {[%clk 0:00:07]} 29. Bd5 {[%clk 0:00:28]}  Kg7 {[%clk 0:00:05]} 30. Rb7+ {[%clk 0:00:26]}  Kh6 {[%clk 0:00:04]} 31. Bxe6 {[%clk 0:00:24]}  Nxe6 {[%clk 0:00:04]} 32. Qh4# {[%clk 0:00:24]} 1-0


[Site "https://www.chess.com"]

[Event "Titled Tuesday Blitz June 1 2021"]
[White "Real De Azua, Ernesto"]
[Black "Xiong, Jeffery"]
[WhiteFideId "108154"]
[BlackFideId "2047640"]
[WhiteElo "2476"]
[BlackElo "2724"]
[Result "0-1"]
[Round "02"]
[TimeControl "180+1"]
[Date "2021.06.01"]
[WhiteClock "0:00:01"]
[BlackClock "0:00:32"]

1. d4 {[%clk 0:03:00]}  Nf6 {[%clk 0:02:59]} 2. c4 {[%clk 0:02:59]}  c5 {[%clk 0:02:59]} 3. d5 {[%clk 0:02:56]}  b5 {[%clk 0:02:59]} 4. Qc2 {[%clk 0:02:56]}  bxc4 {[%clk 0:02:58]} 5. e4 {[%clk 0:02:57]}  d6 {[%clk 0:02:59]} 6. Bxc4 {[%clk 0:02:55]}  g6 {[%clk 0:03:00]} 7. Nc3 {[%clk 0:02:55]}  Bg7 {[%clk 0:03:01]} 8. Nf3 {[%clk 0:02:55]}  O-O {[%clk 0:03:01]} 9. O-O {[%clk 0:02:55]}  Nfd7 {[%clk 0:02:58]} 10. Re1 {[%clk 0:02:48]}  a5 {[%clk 0:02:57]} 11. Bf4 {[%clk 0:02:46]}  Na6 {[%clk 0:02:45]} 12. a3 {[%clk 0:02:33]}  Nb6 {[%clk 0:02:45]} 13. Bf1 {[%clk 0:02:31]}  c4 {[%clk 0:02:34]} 14. h3 {[%clk 0:02:26]}  Nc5 {[%clk 0:02:33]} 15. Rad1 {[%clk 0:02:25]}  Ba6 {[%clk 0:02:32]} 16. Nd4 {[%clk 0:01:38]}  Nd3 {[%clk 0:02:31]} 17. Bxd3 {[%clk 0:01:38]}  cxd3 {[%clk 0:02:31]} 18. Rxd3 {[%clk 0:01:39]}  Bxd3 {[%clk 0:02:31]} 19. Qxd3 {[%clk 0:01:40]}  Bxd4 {[%clk 0:02:22]} 20. Qxd4 {[%clk 0:01:40]}  f6 {[%clk 0:02:23]} 21. a4 {[%clk 0:01:19]}  Rc8 {[%clk 0:02:21]} 22. b3 {[%clk 0:01:16]}  Nd7 {[%clk 0:02:20]} 23. Nb5 {[%clk 0:01:11]}  Qb6 {[%clk 0:02:17]} 24. Qd2 {[%clk 0:01:08]}  Nc5 {[%clk 0:02:11]} 25. Qe3 {[%clk 0:01:04]}  Rb8 {[%clk 0:02:05]} 26. h4 {[%clk 0:01:03]}  Na6 {[%clk 0:01:53]} 27. Qe2 {[%clk 0:01:01]}  Nc7 {[%clk 0:01:53]} 28. Be3 {[%clk 0:00:54]}  Qb7 {[%clk 0:01:49]} 29. Nd4 {[%clk 0:00:52]}  f5 {[%clk 0:01:31]} 30. Bh6 {[%clk 0:00:31]}  Rf7 {[%clk 0:01:30]} 31. exf5 {[%clk 0:00:18]}  Qxd5 {[%clk 0:01:28]} 32. fxg6 {[%clk 0:00:13]}  hxg6 {[%clk 0:01:29]} 33. Qg4 {[%clk 0:00:12]}  Qh5 {[%clk 0:01:27]} 34. Qxh5 {[%clk 0:00:08]}  gxh5 {[%clk 0:01:27]} 35. Rc1 {[%clk 0:00:03]}  Nd5 {[%clk 0:01:27]} 36. Bd2 {[%clk 0:00:02]}  e5 {[%clk 0:01:26]} 37. Nf3 {[%clk 0:00:03]}  Rxb3 {[%clk 0:01:26]} 38. Ng5 {[%clk 0:00:03]}  Rc7 {[%clk 0:01:25]} 39. Re1 {[%clk 0:00:03]}  Rc4 {[%clk 0:01:22]} 40. Bxa5 {[%clk 0:00:03]}  Rxa4 {[%clk 0:01:22]} 41. Bd2 {[%clk 0:00:02]}  Rxh4 {[%clk 0:01:22]} 42. Ne4 {[%clk 0:00:02]}  Rd3 {[%clk 0:00:53]} 43. Bg5 {[%clk 0:00:02]}  Rg4 {[%clk 0:00:54]} 44. Kf1 {[%clk 0:00:01]}  Rxe4 {[%clk 0:00:32]} 0-1


[Site "https://www.chess.com"]

[Event "Titled Tuesday Blitz June 1 2021"]
[White "Sarana, Alexey"]
[Black "Tejedor Fuente, Enrique"]
[WhiteFideId "24133795"]
[BlackFideId "2299100"]
[WhiteElo "2629"]
[BlackElo "2535"]
[Result "1-0"]
[Round "02"]
[TimeControl "180+1"]
[Date "2021.06.01"]
[WhiteClock "0:00:54"]
[BlackClock "0:00:01"]

1. d4 {[%clk 0:03:00]}  Nf6 {[%clk 0:02:59]} 2. c4 {[%clk 0:03:01]}  e6 {[%clk 0:02:58]} 3. Nf3 {[%clk 0:03:00]}  b6 {[%clk 0:02:57]} 4. a3 {[%clk 0:02:57]}  Bb7 {[%clk 0:02:57]} 5. Nc3 {[%clk 0:02:57]}  h6 {[%clk 0:02:56]} 6. Bf4 {[%clk 0:02:53]}  d5 {[%clk 0:02:54]} 7. e3 {[%clk 0:02:52]}  a6 {[%clk 0:02:54]} 8. cxd5 {[%clk 0:02:52]}  exd5 {[%clk 0:02:53]} 9. Bd3 {[%clk 0:02:51]}  Bd6 {[%clk 0:02:53]} 10. Bxd6 {[%clk 0:02:45]}  Qxd6 {[%clk 0:02:52]} 11. Ne5 {[%clk 0:02:41]}  O-O {[%clk 0:02:52]} 12. O-O {[%clk 0:02:41]}  c5 {[%clk 0:02:52]} 13. f4 {[%clk 0:02:37]}  Nc6 {[%clk 0:02:50]} 14. Bc2 {[%clk 0:02:35]}  b5 {[%clk 0:02:47]} 15. Rf3 {[%clk 0:02:34]}  b4 {[%clk 0:02:44]} 16. axb4 {[%clk 0:02:27]}  cxd4 {[%clk 0:02:40]} 17. exd4 {[%clk 0:02:22]}  Qxb4 {[%clk 0:02:40]} 18. Ne2 {[%clk 0:02:14]}  Qd6 {[%clk 0:02:22]} 19. Ng3 {[%clk 0:02:03]}  Bc8 {[%clk 0:02:16]} 20. Rc1 {[%clk 0:01:44]}  Nb4 {[%clk 0:02:10]} 21. Bb1 {[%clk 0:01:42]}  Ra7 {[%clk 0:02:10]} 22. Qd2 {[%clk 0:01:30]}  a5 {[%clk 0:02:10]} 23. Qc3 {[%clk 0:01:29]}  Bg4 {[%clk 0:02:02]} 24. Nxg4 {[%clk 0:01:21]}  Nxg4 {[%clk 0:02:03]} 25. Nf5 {[%clk 0:01:21]}  Qb6 {[%clk 0:02:00]} 26. Rg3 {[%clk 0:01:18]}  h5 {[%clk 0:01:20]} 27. h3 {[%clk 0:01:15]}  g6 {[%clk 0:01:15]} 28. hxg4 {[%clk 0:01:08]}  gxf5 {[%clk 0:01:16]} 29. gxf5+ {[%clk 0:01:08]}  Kh8 {[%clk 0:01:15]} 30. f6 {[%clk 0:01:03]}  Qxf6 {[%clk 0:01:11]} 31. Rg5 {[%clk 0:01:00]}  Qxf4 {[%clk 0:00:35]} 32. Rxh5+ {[%clk 0:01:00]}  Kg7 {[%clk 0:00:35]} 33. Rf1 {[%clk 0:01:00]}  Qg4 {[%clk 0:00:31]} 34. Rh7+ {[%clk 0:00:59]}  Kg8 {[%clk 0:00:31]} 35. Rh3 {[%clk 0:00:59]}  Rc8 {[%clk 0:00:10]} 36. Rg3 {[%clk 0:00:56]}  Qxg3 {[%clk 0:00:01]} 37. Qxg3+ {[%clk 0:00:57]}  Kf8 {[%clk 0:00:01]} 38. Qd6+ {[%clk 0:00:55]}  Re7 {[%clk 0:00:01]} 39. Bg6 {[%clk 0:00:54]} 1-0


[Site "https://www.chess.com"]